Cogmind - Beta 16.1 @@@ ROGUE MODE // 2026.04.09 @ 12:44:27 Player: SunShine214 Result: Destroyed by B2-9P1(R) with Subdweller Beam Cannon Performance ------------- Evolutions (0) 0 Regions Visited (2) 400 Robots Destroyed (21) 105 Value Destroyed (354) 354 Prototype IDs (0) 0 Alien Tech Used (0) 0 Bonus (0) 0 TOTAL SCORE: 859 Bonus ------- None Cogmind --------- Core Integrity 0/250 Matter 269/300 Energy 100/100 System Corruption 0% Temperature Cool (9) Movement Treading (160) Location -10/Subcaves Parts ------- > --- POWER (1) -------- (None) > --- PROPULSION (2) --- Light Treads Light Treads > --- UTILITY (2) ------ Large Storage Unit Visual Processing Unit > --- WEAPON (2) ------- (None) > --- INVENTORY (15) --- Light Treads Sensor Array Signal Interpreter Improved Terrain Scanner Mining Laser Peak State ------------ > --- POWER ------------ Light Ion Engine > --- PROPULSION ------- Light Treads Light Treads > --- UTILITY ---------- Large Storage Unit Visual Processing Unit > --- WEAPON ----------- EM Pulse Gun Battle Rifle > --- INVENTORY -------- Light Treads Light Treads Light Treads Sensor Array Signal Interpreter Improved Terrain Scanner Assault Rifle Mining Laser [Rating: 10] Favorites ----------- Power Light Ion Engine Engine Light Ion Engine Propulsion Light Treads Treads Light Treads Utility Large Storage Unit Device Improved Terrain Scanner Storage Large Storage Unit Processor Visual Processing Unit Weapon EM Pulse Gun Energy Gun EM Pulse Gun Ballistic Gun Assault Rifle Special Weapon Mining Laser Build | -11 -10 -10 ------- Run | Yrd Mat Sub Slots Evolved . | . . . Power . | . . . Propulsion . | . . . Utility . | . . . Weapon . | . . . Parts Attached 15 | 8 4 3 Power 1 | 1 . . Engine 1 | 1 . . Core . | . . . Reactor . | . . . Propulsion 4 | 2 . 2 Treads 4 | 2 . 2 Leg . | . . . Wheel . | . . . Hover . | . . . Flight . | . . . Utility 5 | 3 2 . Device 1 | 1 . . Storage 3 | 2 1 . Processor 1 | . 1 . Hackware . | . . . Protection . | . . . Artifact . | . . . Weapon 5 | 2 2 1 Energy Gun 2 | 2 . . Energy Cannon . | . . . Ballistic Gun 2 | . 1 1 Ballistic Cannon . | . . . Launcher . | . . . Special Weapon 1 | . 1 . Impact Weapon . | . . . Slashing Weapon . | . . . Piercing Weapon . | . . . Special Melee Weapon . | . . . Unidentified Prototypes . | . . . Parts Lost 6 | . . 6 Power 1 | . . 1 Propulsion 2 | . . 2 Utility . | . . . Weapon 3 | . . 3 Highest Loss Streak 5 | . . 5 To Critical Strikes . | . . . Average Backups 5 | 1 5 6 Power . | . . . Propulsion 1 | . 2 2 Utility 1 | . 1 3 Weapon 1 | . 1 1 Tool/Special . | . . . Unused Backups 5 | 1 1 3 Power 1 | 1 . . Propulsion 1 | . . 1 Utility 2 | . . 2 Weapon 1 | . 1 . Tool/Special . | . . . Average Slot Usage (%) 97 | . 99 92 Engine 14 | . 14 14 Treads 27 | . 27 27 Device 7 | . 9 . Storage 14 | . 14 14 Processor 6 | . 4 14 Energy Gun 17 | . 20 8 Ballistic Gun 6 | . 6 7 Special Weapon 2 | . 1 5 Peak Build Rating 10 | 9 9 10 Average Rating 7 | 5 8 7 On Entrance 5 | . 9 8 Avg Prop Armor Cover (%) . | . . . Naked Turns . | . . . Heaviest Build 28 | 16 28 27 Greatest Support 40 | 40 40 40 Greatest Overweight (x) 1 | . 1 . Average Overweight (x) . | . . . Largest Inventory Capacity 15 | 8 15 15 Average Capacity 11 | 7 11 15 Most Carried 8 | 3 8 8 Average Carried 5 | 2 5 6 Final Capacity 15 | 8 15 15 Final Carried 7 | 3 7 5 Class Distribution -------------------- 100% | Mutant Dominant Class ---------------- Mutant | -10/Materials Mutant | -10/Subcaves Resources | -11 -10 -10 ----------- Run | Yrd Mat Sub Matter Collected 412 | 280 97 35 Remotely . | . . . Salvage Created 713 | 234 479 . Parts 52 | 20 32 . Haulers Intercepted 2 | . 2 . Recyclers Shooed . | . . . Parts Field Recycled . | . . . Retrieved Matter . | . . . Parts Self-Destructed 4 | . . 4 Prevented . | . . . Parts Restored . | . . . Kills | -11 -10 -10 ------- Run | Yrd Mat Sub Combat Hostiles Destroyed 10 | . 10 . Guns 10 | . 10 . Classes Destroyed 7 | 3 4 . Worker 2 | 2 . . Tunneler 5 | 5 . . Hauler 2 | . 2 . Recycler 1 | 1 . . Watcher 1 | . 1 . Swarmer 3 | . 3 . Grunt 7 | . 7 . Best Kill Streak 5 | 5 5 . Combat Bots Only 4 | . 4 . Max Kills in Single Turn 1 | 1 1 . Gunslinging . | . . . Exploded . | . . . Melee . | . . . Uniques/NPCs Destroyed . | . . . Combat | -11 -10 -10 -------- Run | Yrd Mat Sub Hostile Shots Fired 69 | . 27 42 Missed 22 | . 10 12 Hits 47 | . 17 30 Projectile 47 | . 17 30 Critical Strikes 3 | . 1 2 Damage Taken 988 | . 229 759 Core 253 | . 68 185 Absorbed by Shields . | . . . Core Remaining (%) 100 | 100 . . Volleys Fired 57 | 20 25 12 Largest 2 | 2 2 2 Hottest 140 | 80 140 140 Shots Fired 112 | 40 48 24 Gun 108 | 40 47 21 Cannon . | . . . Launcher . | . . . Special 4 | . 1 3 Kinetic 25 | . 9 16 Thermal 37 | 20 14 3 Explosive . | . . . Electromagnetic 50 | 20 25 5 Robot Hit Streak 10 | 7 9 10 Robot Miss Streak 3 | 3 2 2 Penetration Max . | . . . Secondary Targets 2 | . 2 . Max Gunslinging Chain 1 | . 1 . Shots Hit Robots 69 | 21 32 16 Core Hits 28 | 8 20 . Critical Kills . | . . . Critical Parts Destroyed . | . . . Critical Strikes . | . . . Melee Attacks . | . . . Impact . | . . . Slashing . | . . . Piercing . | . . . Sneak Attacks . | . . . Combat Hostiles . | . . . Follow-up Attacks . | . . . Damage Inflicted 738 | 304 395 39 Guns 698 | 267 395 36 Cannons . | . . . Explosions 37 | 37 . . Melee . | . . . Ramming 3 | . . 3 Kinetic 86 | . 62 24 Thermal 256 | 168 88 . Explosive . | . . . Electromagnetic 393 | 136 245 12 Impact . | . . . Slashing . | . . . Piercing . | . . . Highest Corruption . | . . . Average Corruption . | . . . Corruption Purged . | . . . Corruption Blocked . | . . . Overload Shots . | . . . Overflow Damage 7 | 7 . . Projectiles . | . . . Explosions 7 | 7 . . Melee . | . . . Knockbacks . | . . . Impact . | . . . Kinetic . | . . . Secondary . | . . . Self-Inflicted Damage . | . . . Shots . | . . . Rammed 1 | . . 1 Targets Rammed 1 | . . 1 Kicked . | . . . Crushed . | . . . Highest Temperature 271 | 144 96 271 Average Temperature 46 | 48 29 137 Received Heat Transfer 487 | . 72 415 Siege Activations . | . . . Martial Activations . | . . . Shielding Activations . | . . . Robots Disrupted . | . . . Combat Hostiles . | . . . Robots Corrupted . | . . . Combat Hostiles . | . . . Parts Fried . | . . . Impact Corruptions . | . . . Robots Melted . | . . . Combat Hostiles . | . . . Parts Melted . | . . . Heat Transferred 550 | 350 200 . Parts Sabotaged . | . . . Parts Stolen . | . . . Parts Stripped . | . . . Power Chain Reactions 1 | 1 . . Alert | -11 -10 -10 ------- Run | Yrd Mat Sub Maximum Alert Level . | . . . Low Security (%) 100 | 100 100 . Level 1 . | . . . Level 2 . | . . . Level 3 . | . . . Level 4 . | . . . Level 5 . | . . . High Security . | . . . Max Security . | . . . Peak Influence 128 | 15 128 . Initial . | . . . Average 41 | 2 56 . Influence Increases 337 | 40 297 . Destroy 0b10 Robot/C 200 | . 200 . Destroy 0b10 Robot/NC 55 | 40 15 . Destroy Leader 46 | . 46 . Successful Hack 20 | . 20 . Disable Machine 15 | . 15 . Destroy Structure 1 | . 1 . Influence Decreases 337 | 40 248 49 Entered New Map 25 | . . 25 Time Decay 312 | 40 248 24 Squads Dispatched 2 | . 2 . Investigation 1 | . 1 . Extermination . | . . . Reinforcement 1 | . 1 . Assault . | . . . Garrison . | . . . Intercept . | . . . Searches Triggered . | . . . Construction Impeded . | . . . Haulers Reinforced . | . . . Active Scanning Responses . | . . . Cargo Convoy Interrupts . | . . . Stealth | -11 -10 -10 --------- Run | Yrd Mat Sub Distress Signals 3 | . 3 . Communications Jammed . | . . . Distress Signals . | . . . Times Spotted 17 | . 15 2 Peak Tracking Total 4 | . 4 2 Tactical Retreats . | . . . Traps | -11 -10 -10 ------- Run | Yrd Mat Sub Traps Triggered 3 | . 3 . Indirectly . | . . . Trap Hack Attempts . | . . . Triggered . | . . . Disarmed . | . . . Reprogrammed . | . . . Reused . | . . . Traps Extracted . | . . . Installed . | . . . Triggered . | . . . Machines | -11 -10 -10 ---------- Run | Yrd Mat Sub Machines Disabled 1 | . 1 . Max in Single Turn 1 | . 1 . Machines Repaired . | . . . Machines Dismantled . | . . . Machines Sabotaged . | . . . Overloaded Fab Kills . | . . . Hacking | -11 -10 -10 --------- Run | Yrd Mat Sub Machines Accessed 5 | . 5 . Terminals 5 | . 5 . Fabricators . | . . . Repair Stations . | . . . Recycling Units . | . . . Scanalyzers . | . . . Garrison Access . | . . . Total Hacks 15 | . 15 . Successful 4 | . 4 . Failed 11 | . 11 . Catastrophic 2 | . 2 . Database Lockouts . | . . . Manual 11 | . 11 . Terminals 15 | . 15 . Fabricators . | . . . Repair Stations . | . . . Recycling Units . | . . . Scanalyzers . | . . . Garrison Access . | . . . Terminal Hacks 4 | . 4 . Part Schematic 1 | . 1 . Hauler Manifests 1 | . 1 . Registered Components 1 | . 1 . Zone Layout 1 | . 1 . Fabricator Hacks . | . . . Repair Station Hacks . | . . . Recycling Unit Hacks . | . . . Scanalyzer . | . . . Garrison Access Hacks . | . . . Unauthorized Hacks . | . . . Terminals . | . . . Fabricators . | . . . Repair Stations . | . . . Recycling Units . | . . . Scanalyzers . | . . . Garrison Access . | . . . Data Cores Recovered . | . . . Used . | . . . Hacking Detections 4 | . 4 . Full Trace Events 1 | . 1 . Feedback Events . | . . . Feedback Blocked . | . . . Robot Schematics Acquired . | . . . Robots Built . | . . . Authchips . | . . . Time . | . . . Total Robot Build Rating . | . . . Part Schematics Acquired 1 | . 1 . Parts Built . | . . . Authchips . | . . . Time . | . . . Total Part Build Rating . | . . . Part Studies Acquired . | . . . Parts Repaired . | . . . Time . | . . . Parts Recycled . | . . . Recycled Matter . | . . . Retrieved Matter . | . . . Retrieved Components . | . . . Parts Scanalyzed . | . . . Part Schematics Acquired . | . . . Parts Damaged . | . . . Bothacking | -11 -10 -10 ------------ Run | Yrd Mat Sub Used RIF Installer . | . . . Robots Hacked . | . . . Non-combat . | . . . Combat . | . . . Robot Hacks Applied . | . . . Relay Couplers Released . | . . . Fabnet Peak Effective % . | . . . Robots Rewired . | . . . Allies Hacked . | . . . Hacks Repelled . | . . . Allies | -11 -10 -10 -------- Run | Yrd Mat Sub Total Allies . | . . . Largest Group . | . . . Highest-Rated Group . | . . . Highest-Rated Ally . | . . . Total Orders . | . . . Ally Attacks . | . . . Total Damage . | . . . Kills . | . . . Allies Corrupted . | . . . Allies Melted . | . . . Intel | -11 -10 -10 ------- Run | Yrd Mat Sub Active Infowar (turns) 819 | 12 607 200 Optics 386 | . 186 200 Terrain 433 | 12 421 . Robot Analysis Total . | . . . Derelict Logs Recovered . | . . . Drone Launches . | . . . Drone Recoveries . | . . . Exploration | -11 -10 -10 ------------- Run | Yrd Mat Sub Turns Passed 1042 | 235 607 200 Spaces Moved 498 | 103 301 94 Core 4 | 4 . . Treads 494 | 99 301 94 Legs . | . . . Wheels . | . . . Hover . | . . . Flight . | . . . Fastest Speed 50 | 50 160 160 Average Speed 159 | 155 160 160 Slowest Speed 240 | 160 240 160 Overloaded Moves . | . . . Propulsion Burnouts . | . . . Robots Hopped . | . . . Potential Cave-ins . | . . . Cave-ins Triggered . | . . . Exploration Rate (%) 26 | 5 65 9 Regions Visited 2 Branch Regions 1 Pre-discovered Areas . | . . . Known Exits Taken . | . . . Unknown Exits Taken 2 | 1 1 . Scrap Searched . | . . . Spaces Dug . | . . . Terrain Destroyed . | . . . Melee . | . . . Projectile . | . . . AOE . | . . . Terrain Rammed . | . . . Walls Destroyed . | . . . Machines Disabled . | . . . Actions | -11 -10 -10 --------- Run | Yrd Mat Sub Total 623 | 135 375 113 Wait 31 | . 31 . Move 496 | 102 300 94 Hop . | . . . Pick Up 12 | 3 8 1 Fast Attach 11 | 8 3 . Attach 4 | . 1 3 Detach 1 | 1 . . Swap 5 | . 3 2 Drop 5 | 1 4 . Fire 57 | 20 25 12 Melee . | . . . Ram . | . . . Kick . | . . . Crush 1 | . . 1 Escape Stasis . | . . . Rewire . | . . . Trap . | . . . Miscellaneous . | . . . Route ------- -11/Scrapyard -10/Materials (discovered 4 exits: [*Mat x2] / [*Min] / [*Sub]) -10/Subcaves History --------- Turn | Location | Event 60 | -11/Scrapyard | Discovered new exit (range 15) 236 | -11/Scrapyard | Entered Materials 302 | -10/Materials | Build established: Mutant 496 | -10/Materials | Discovered new exit (range 7) 642 | -10/Materials | Discovered new exit (range 15) 725 | -10/Materials | Discovered new exit (range 17) 832 | -10/Materials | Discovered new exit (range 8) 843 | -10/Materials | Entered Subcaves 875 | -10/Subcaves | Shifting Twisted Machinery released Battle Rifle 886 | -10/Subcaves | Shifting Twisted Machinery released Scrap Shield 976 | -10/Subcaves | Core integrity fell below 50% 1005 | -10/Subcaves | Core integrity fell below 20% 1022 | -10/Subcaves | Lost 5 parts (2n3w) 1043 | -10/Subcaves | Destroyed by B2-9P1(R) with Subdweller Beam Cannon Last Messages --------------- Battle Rifle falls loose from the Twisted Machinery. Scrap Shield falls loose from the Twisted Machinery. 00901_ Acquired Battle Rifle. 00902_ Acquired 10 matter. 00920_ S7-XL3(O) collects matter. 00955_ Acquired 6 matter. 00967_ EM Pulse Gun destroyed. 00969_ Critical hit (Meltdown: +280). 00973_ Lgt. Treads destroyed. 00974_ IA-UOV(R) IFF system glitched. 00984_ Lgt. Treads destroyed. 00991_ Assault Rifle destroyed. 00991_ Battle Rifle destroyed. 00993_ 9O-Y0Y(O) collects matter. 00994_ Acquired 14 matter. 01012_ Acquired 5 matter. 01042_ Slammed into IA-UOV(R). 01043_ Lgt. Ion Engine destroyed. Map ----- +----------------------------------------------------+ | ????? ## #?# % " " #????????? | | ????? ## ?# ########????????? | | ????? ## ## % ## #???????????????? | | ???? ### #???????????????? | | ???? ### #?# ##???????????????? | | ??????? ### #?# ##????????????????? | | ????????### # ## % ## #?????????????????? | | ???????????## ### #?????????????????? | | ????????#### "##? ?????????????????? | | ????????#% % ""#?### ????????????????? | | ????????# ""##??# "# ????????????????? | | ???????# % """#??#######???????????????? | | ??????# ####### "" #????????????????????????? | | ??????# ????????## ""% #????????????????????????? | | ??????#??????????#"" ####????????????????????????? | | ?????????????????##"" #??????????????????????????? | | ?????????????????#""" #??????????????????????????? | | ?????????????????#"" #####??????????????????????? | | ?????????????????#""" # "#??????????????????????? | | ?????????????????#"" " ""!#??????????????????????? | | ?????????????????## " ""###??????????????????????? | | ??????????????????#""" #######???????????????????? | | ??????????????????#""" #? # #???????####????????? | | ??????????????????#" ### #?????#### ###??????? | | ?????????????????## ##RR #?##### #??????? | | ?????????????????# @ ### #??????? | | ?????????????????####; ## ## #??????? | | ????????????????????###### ## #??????? | | ?????????????????????????## #### ##??????? | | ??????????????????????????## ##??# ###???????? | | ???????????????????????????### ##???###?????????? | | ?????????????????????????????# #????????????????? | | ????????????????????????????# #???????????????? | | ???????????????????????????# #??????????????? | | ???????????????????????????# #?????????????? | | ???????????????????????????# ## ????????????? | | ???????????????????????????# #?? ???????????? | | ???????????????????????????##??? ??????????? | | ????????????????????????????????# ?????????? | | ????????????????????????????????? # ?????????? | | ????????????????????????????????? ?????????? | | ?????????????????????????????????# ????????? | | ?????????????????????????????????? # ??????????? | | ?????????????????????????????????? ?????????? | | ??????????????????????????????????# #???????????? | | ?????????????????????????????????????????????????? | | ?????????????????????????????????????????????????? | | ?????????????????????????????????????????????????? | | ?????????????????????????????????????????????????? | | ?????????????????????????????????????????????????? | +----------------------------------------------------+ Best States ------------- Heat Dissipation 25 Energy Generation 10 Energy Capacity 125 Matter Stores 300 Matter Capacity 300 Sight Range 18 Terrain Scan Range 16 Terrain Scan Density 10 Evasion (%) 40 Recoil Reduction 2 Item Schematics ----------------- Lrg. Storage Unit | -10/Materials | Hacked Robot Schematics ------------------ None Fabricated ------------ Nothing Repaired ---------- Nothing Studied --------- None Alien Tech Used ----------------- None Achievements -------------- None Challenges ------------ None Game ------ Seed PointyThermoelectricSaw Manual? 0 Play Time 00:08:47 Cumulative 124.8 hours Start 2026.04.08 @ 16:59:21 End 2026.04.09 @ 12:44:27 Sessions 1 Manual Loads 0 Difficulty Rogue Special Mode None Game No. 188 Rogue 188 Adventurer 0 Explorer 0 Win Type - Total 1 Types 1/0/0/0/0/0/0/0/0/0 Lore% 50 Gallery% 53 Achievement% 40 Wizard Run 0 Options --------- Layout 1 ASCII 0 Keyboard 1 Movement Arrows Keybinds 0 Fullscreen 1 Font 24/Smallcaps Map View 50x35 Zoom Use 0% Tactical HUD 1 Map Filters NONE Filters NONE Steam 1 RUN: 301ffd31-0437-4d78-8f11-7756960954d7